bitfinex/quotes_BTCUSD_20240727
["timestamp","ask_amount","ask_price","bid_price","bid_amount"]
[1722053824798,1.41295103,68015.0,68014.0,0.46041351]
[1722053825222,1.41295103,68015.0,68014.0,0.44641351]
[1722053825223,1.41095103,68015.0,68014.0,0.44641351]
[1722053825423,1.41095103,68015.0,68014.0,0.47441351]
[1722053825625,1.41195103,68015.0,68014.0,0.47441351]
[1722053825761,1.41195103,68015.0,68014.0,0.46041351]
[1722053826229,1.41195103,68015.0,68014.0,0.35223584]
[1722053826617,1.43501887,68015.0,68014.0,0.35223584]
[1722053833996,1.43501887,68015.0,68014.0,0.323033]
[1722053834199,1.45029195,68015.0,68014.0,0.323033]
[1722053835226,1.44929195,68015.0,68014.0,0.295033]
[1722053835425,1.44929195,68015.0,68014.0,0.309033]
[1722053835593,1.45029195,68015.0,68014.0,0.323033]
[1722053842490,1.74434395,68015.0,68014.0,0.323033]
[1722053842735,1.76734395,68015.0,68014.0,0.323033]
[1722053842884,1.47329195,68015.0,68014.0,0.323033]
[1722053843285,1.47329195,68015.0,68014.0,0.309033]
[1722053843915,1.76634395,68015.0,68014.0,0.309033]
[1722053844133,1.81634395,68015.0,68014.0,0.309033]
[1722053844869,1.88663841,68015.0,68014.0,0.323033]
[1722053845301,1.76734395,68015.0,68014.0,0.323033]
[1722053845500,1.47329195,68015.0,68014.0,0.323033]
[1722053845826,1.76734395,68015.0,68014.0,0.323033]
[1722053848672,1.76818395,68015.0,68014.0,0.323033]
[1722053849409,1.47413195,68015.0,68014.0,0.323033]
[1722053849971,1.76818395,68015.0,68014.0,0.323033]
[1722053850281,1.47413195,68015.0,68014.0,0.323033]
[1722053850491,1.76818395,68015.0,68014.0,0.323033]
[1722053850808,1.47413195,68015.0,68014.0,0.323033]
[1722053852331,1.76818395,68015.0,68014.0,0.323033]
[1722053852534,1.47413195,68015.0,68014.0,0.323033]
[1722053852931,1.53306695,68015.0,68014.0,0.323033]
[1722053855318,1.36856695,68015.0,68014.0,0.323033]
[1722053855488,1.30963195,68015.0,68014.0,0.323033]
[1722053856747,1.28656411,68015.0,68014.0,0.323033]
[1722053857267,1.36966411,68015.0,68014.0,0.323033]
[1722053858579,1.43446411,68015.0,68014.0,0.323033]
[1722053859561,1.45753399,68015.0,68014.0,0.323033]
[1722053862378,1.39273399,68015.0,68014.0,0.323033]
[1722053863842,1.45553399,68015.0,68014.0,0.323033]
[1722053864003,1.52853399,68015.0,68014.0,0.323033]
[1722053864206,1.79951611,68015.0,68014.0,0.323033]
[1722053866435,1.79951611,68015.0,68014.0,0.309033]
[1722053867410,1.82358747,68015.0,68014.0,0.321033]
[1722053867605,1.82258747,68015.0,68014.0,0.307033]
[1722053867812,1.97284704,68015.0,68014.0,0.307033]
[1722053868044,1.97384704,68015.0,68014.0,0.321033]
[1722053868244,1.99691593,68015.0,68014.0,0.321033]
[1722053868450,2.24691593,68015.0,68014.0,0.321033]
[1722053869154,2.09665636,68015.0,68014.0,0.321033]
[1722053872062,2.073585,68015.0,68014.0,0.321033]
[1722053875372,2.09665616,68015.0,68014.0,0.321033]
[1722053875863,2.073585,68015.0,68014.0,0.321033]
[1722053878579,1.900085,68015.0,68014.0,0.321033]
[1722053878764,1.92315636,68015.0,68014.0,0.321033]
[1722053879559,1.900085,68015.0,68014.0,0.321033]
[1722053880423,1.333633,68015.0,68014.0,0.321033]
[1722053882170,1.31835992,68015.0,68014.0,0.321033]
[1722053882350,1.3336348,68015.0,68014.0,0.321033]
[1722053887102,1.35670593,68015.0,68014.0,0.321033]
[1722053887297,1.3336348,68015.0,68014.0,0.321033]
[1722053890345,1.35670593,68015.0,68014.0,0.321033]
[1722053890685,1.3336348,68015.0,68014.0,0.321033]
[1722053894061,1.35670591,68015.0,68014.0,0.321033]
[1722053895603,1.43320591,68015.0,68014.0,0.321033]
[1722053895807,1.4101348,68015.0,68014.0,0.321033]
[1722053898820,1.43320604,68015.0,68014.0,0.321033]
[1722053898990,1.4101348,68015.0,68014.0,0.321033]
[1722053902003,1.43320591,68015.0,68014.0,0.321033]
[1722053902731,1.4101348,68015.0,68014.0,0.321033]
[1722053905805,1.3336348,68015.0,68014.0,0.321033]
[1722053906013,1.4101348,68015.0,68014.0,0.321033]
[1722053906187,1.43320593,68015.0,68014.0,0.321033]
[1722053911049,1.4101348,68015.0,68014.0,0.321033]
[1722053911599,1.90444591,68015.0,68014.0,0.321033]
[1722053911811,2.29614629,68015.0,68014.0,0.321033]
[1722053912034,2.30531129,68015.0,68014.0,0.321033]
[1722053912203,2.15505172,68015.0,68014.0,0.321033]
[1722053914009,2.17812285,68015.0,68014.0,0.321033]
[1722053914420,2.15505206,68015.0,68014.0,0.321033]
[1722053917828,2.17812319,68015.0,68014.0,0.321033]
[1722053918033,2.32838276,68015.0,68014.0,0.321033]
[1722053922080,2.17812319,68015.0,68014.0,0.321033]
[1722053924688,2.1781232,68015.0,68014.0,0.321033]
[1722053925865,2.15505207,68015.0,68014.0,0.321033]
[1722053926067,2.44910407,68015.0,68014.0,0.321033]
[1722053926295,2.74315607,68015.0,68014.0,0.232815]
[1722053926453,2.99341564,68015.0,68014.0,0.174003]
[1722053926655,2.99341564,68015.0,68014.0,0.14174968]
[1722053927051,2.99141564,68015.0,68014.0,6.8e-07]
[1722053927256,2.99241564,68015.0,68014.0,0.01200068]
[1722053927478,2.69836364,68015.0,68014.0,0.30605068]
[1722053927673,2.69836364,68015.0,68014.0,0.30905068]
[1722053927938,2.69836505,68015.0,68014.0,0.30605068]
[1722053928139,2.69836505,68015.0,68014.0,0.29405068]
[1722053928140,2.69736505,68015.0,68014.0,0.29405068]
[1722053928340,2.69736505,68015.0,68014.0,0.29805068]
[1722053929448,2.72043754,68015.0,68014.0,0.29805068]
[1722053929859,2.69736505,68015.0,68014.0,0.29805068]
[1722053931326,1.86175349,68015.0,68014.0,0.29805068]
[1722053931546,2.11135349,68015.0,68014.0,0.29805068]
[1722053933066,2.13442598,68015.0,68014.0,0.29805068]
[1722053933471,2.11135349,68015.0,68014.0,0.29805068]
[1722053936695,1.81135349,68015.0,68014.0,0.29805068]
[1722053936873,1.73442598,68015.0,68014.0,0.43845068]
[1722053937633,1.73442598,68015.0,68014.0,0.43445068]
[1722053937819,1.71135349,68015.0,68014.0,0.43745068]
[1722053938018,1.41730149,68015.0,68014.0,0.43845068]
[1722053938235,1.41730149,68015.0,68014.0,0.43545068]
[1722053938236,1.40813472,68015.0,68014.0,0.43545068]
[1722053938441,1.40813472,68015.0,68014.0,0.44445068]
[1722053938442,1.40913472,68015.0,68014.0,0.44445068]
[1722053938876,1.41013472,68015.0,68014.0,0.45145068]
[1722053945387,1.43320606,68015.0,68014.0,0.45145068]
[1722053945587,1.41013472,68015.0,68014.0,0.45145068]
[1722053948905,1.43320606,68015.0,68014.0,0.45145068]
[1722053950007,1.46013472,68015.0,68014.0,0.31105068]
[1722053950803,1.80418672,68015.0,68014.0,0.31105068]
[1722053951207,2.0133522,68015.0,68014.0,0.31105068]
[1722053954243,2.01335253,68015.0,68014.0,0.31105068]
[1722053955829,2.15095253,68015.0,68014.0,0.31105068]
[1722053957400,2.14178672,68015.0,68014.0,0.31105068]
[1722053957569,2.3012121,68015.0,68014.0,0.31105068]
[1722053958505,2.32428365,68015.0,68014.0,0.31105068]
[1722053958864,2.3012121,68015.0,68014.0,0.31105068]
[1722053961388,2.09095253,68015.0,68014.0,0.31105068]
[1722053961591,2.01335253,68015.0,68014.0,0.31105068]
[1722053962273,2.03642408,68015.0,68014.0,0.31105068]
[1722053963693,2.01335253,68015.0,68014.0,0.31105068]
[1722053965598,2.15855253,68015.0,68014.0,0.31105068]
[1722053965799,2.3088121,68015.0,68014.0,0.31105068]
[1722053966837,2.33188365,68015.0,68014.0,0.31105068]
[1722053967242,2.3088121,68015.0,68014.0,0.31105068]
[1722053967848,2.30881211,68015.0,68014.0,0.31105068]
[1722053968051,2.24451211,68015.0,68014.0,0.31105068]
[1722053970670,2.26758366,68015.0,68014.0,0.31105068]
[1722053971276,2.25841784,68015.0,68014.0,0.31105068]
[1722053971483,2.26758366,68015.0,68014.0,0.31105068]
[1722053971866,2.24451211,68015.0,68014.0,0.31105068]
[1722053974312,2.53856411,68015.0,68014.0,0.31105068]
[1722053974672,2.24451211,68015.0,68014.0,0.31105068]
[1722053979482,2.26758366,68015.0,68014.0,0.31105068]
[1722053981333,2.56163566,68015.0,68014.0,0.31105068]
[1722053981525,2.55246984,68015.0,68014.0,0.31105068]
[1722053981723,2.26758366,68015.0,68014.0,0.31105068]
[1722053981936,2.18668366,68015.0,68014.0,0.31105068]
[1722053983778,2.16361211,68015.0,68014.0,0.31105068]
[1722053985587,2.45766411,68015.0,68014.0,0.31105068]
[1722053985786,2.16361211,68015.0,68014.0,0.31105068]
[1722053986357,2.45766411,68015.0,68014.0,0.31105068]
[1722053986649,2.16361211,68015.0,68014.0,0.31105068]
[1722053986890,2.45766411,68015.0,68014.0,0.31105068]
[1722053987134,2.18668366,68015.0,68014.0,0.31105068]
[1722053987477,2.45766411,68015.0,68014.0,0.31105068]
[1722053987683,2.16361211,68015.0,68014.0,0.31105068]
[1722053988492,2.15444629,68015.0,68014.0,0.31105068]
[1722053988820,2.45766411,68015.0,68014.0,0.31105068]
[1722053989167,2.16361211,68015.0,68014.0,0.31105068]
[1722053989368,2.01335254,68015.0,68014.0,0.45155068]
[1722053990732,2.03642409,68015.0,68014.0,0.45155068]
[1722053993850,1.63692409,68015.0,68014.0,0.45155068]
[1722053994050,1.40317169,68015.0,68014.0,0.45155068]
[1722053994253,1.04882009,68015.0,68014.0,0.45155068]
[1722053994428,1.03965427,68015.0,68014.0,0.45155068]
[1722053994948,0.72253072,68015.0,68014.0,0.45155068]
[1722053995149,0.72253072,68015.0,68014.0,0.44455068]
[1722053995150,1.01558272,68015.0,68014.0,0.44455068]
[1722053995454,0.72253072,68015.0,68014.0,0.45255068]
[1722053995592,0.72153072,68015.0,68014.0,0.44255068]
[1722053995793,0.42747872,68015.0,68014.0,0.44855068]
[1722053995995,0.72153072,68015.0,68014.0,0.44855068]
[1722053996250,0.42747872,68015.0,68014.0,0.44855068]
[1722053996878,0.72153072,68015.0,68014.0,0.44855068]
[1722053997238,0.72153072,68015.0,68014.0,0.46255068]
[1722054002604,0.74460188,68015.0,68014.0,0.46255068]
[1722054003426,1.03865388,68015.0,68014.0,0.46255068]
[1722054003802,1.01558272,68015.0,68014.0,0.46255068]
[1722054007955,0.99251383,68015.0,68014.0,0.46255068]
[1722054011263,0.40440983,68015.0,68014.0,0.46255068]
[1722054011465,0.68318703,68015.0,68014.0,0.46255068]
[1722054014200,0.70625863,68015.0,68014.0,0.46255068]
[1722054014716,0.68318703,68015.0,68014.0,0.46255068]
[1722054017440,0.24210903,68015.0,68014.0,0.68607868]
[1722054017641,0.24210903,68015.0,68014.0,1.57611251]
[1722054017642,0.02491134,68015.0,68014.0,1.57611251]
[1722054017820,0.02491134,68015.0,68014.0,1.87016951]
[1722054018023,0.02491134,68015.0,68014.0,1.87015561]
[1722054018290,0.00184,68015.0,68014.0,1.87015561]
[1722054018424,0.00184,68015.0,68014.0,1.85615561]
[1722054018631,0.00084,68015.0,68014.0,1.71998925]
[1722054018829,0.00084,68015.0,68014.0,1.73398925]
[1722054019013,0.00084,68015.0,68014.0,1.74798925]
[1722054020287,0.00084,68015.0,68014.0,1.73398925]
[1722054020837,0.00084,68015.0,68014.0,1.74798925]
[1722054021495,0.02390961,68015.0,68014.0,1.74798925]
[1722054021722,0.00084,68015.0,68014.0,1.74798925]
[1722054023135,0.00084,68015.0,68014.0,1.87015038]
[1722054025127,0.02390938,68015.0,68014.0,1.87015038]
[1722054025676,0.02390938,68015.0,68014.0,1.74798925]
[1722054025978,0.02390938,68015.0,68014.0,1.87014809]
[1722054026178,0.00084,68015.0,68014.0,1.87014809]
[1722054026678,0.00084,68015.0,68014.0,1.57609109]
[1722054026890,0.05084,68015.0,68014.0,1.57609109]
[1722054027570,0.00084,68015.0,68014.0,1.57609109]
[1722054027926,0.05084,68015.0,68014.0,1.57609109]
[1722054028966,0.00084,68015.0,68014.0,1.57609109]
[1722054029349,0.02390953,68015.0,68014.0,1.57609109]
[1722054029550,0.02390953,68015.0,68014.0,1.57609129]
[1722054030513,0.00084,68015.0,68014.0,1.57609129]
[1722054032269,0.05084,68015.0,68014.0,1.49959129]
[1722054032519,0.05084,68015.0,68014.0,0.61418972]
[1722054032520,0.24110903,68015.0,68014.0,0.61418972]
[1722054032726,0.24110903,68015.0,68014.0,0.58470972]
[1722054032924,0.68218703,68015.0,68014.0,0.44420972]
[1722054033468,0.68218703,68015.0,68014.0,0.32205068]
[1722054033623,0.68218703,68015.0,68014.0,0.30805068]
[1722054033826,0.70525734,68015.0,68014.0,0.30805068]
[1722054034179,1.12993903,68015.0,68014.0,0.32205068]
[1722054034403,1.2326117,68015.0,68014.0,0.29405068]
[1722054034557,1.5266637,68015.0,68014.0,0.29405068]
[1722054034788,1.5266637,68015.0,68014.0,0.32205068]
[1722054035088,1.5266637,68015.0,68014.0,0.30805068]
[1722054035489,1.5266637,68015.0,68014.0,0.29405068]
[1722054035897,1.5266637,68015.0,68014.0,0.30805068]
[1722054037238,1.5266637,68015.0,68014.0,0.32205068]
[1722054037622,1.5266637,68015.0,68014.0,0.30805068]
[1722054038003,1.5266637,68015.0,68014.0,0.32205068]
[1722054040119,1.5766637,68015.0,68014.0,0.32205068]
[1722054040569,1.5266637,68015.0,68014.0,0.32205068]
[1722054041348,1.5766637,68015.0,68014.0,0.32205068]
[1722054041755,1.5497345,68015.0,68014.0,0.32205068]
[1722054041998,1.5997345,68015.0,68014.0,0.32205068]
[1722054042223,1.5766637,68015.0,68014.0,0.32205068]
[1722054042407,1.8707157,68015.0,68014.0,0.32205068]
[1722054043195,1.8707157,68015.0,68014.0,0.30805068]
[1722054043613,1.8707157,68015.0,68014.0,0.32005068]
[1722054043822,1.8207157,68015.0,68014.0,0.32005068]
[1722054044053,1.8207157,68015.0,68014.0,0.29405068]
[1722054044261,1.8207157,68015.0,68014.0,0.30605068]
[1722054044482,1.8207157,68015.0,68014.0,0.32005068]
[1722054045364,1.5266637,68015.0,68014.0,0.32005068]
[1722054045589,1.5497345,68015.0,68014.0,0.32005068]
[1722054046324,1.8437865,68015.0,68014.0,0.32005068]
[1722054046480,1.5497345,68015.0,68014.0,0.32005068]
[1722054046682,1.5266637,68015.0,68014.0,0.32005068]
[1722054046876,1.8207157,68015.0,68014.0,0.32005068]
[1722054047105,1.5266637,68015.0,68014.0,0.32005068]
[1722054049602,1.4766637,68015.0,68014.0,0.32005068]
[1722054049990,1.4977345,68015.0,68014.0,0.32005068]
[1722054050370,1.4746637,68015.0,68014.0,0.32005068]
[1722054050578,1.5266637,68015.0,68014.0,0.32005068]
[1722054050775,1.4766637,68015.0,68014.0,0.32005068]
[1722054051097,1.5266637,68015.0,68014.0,0.32005068]
[1722054051881,1.4766637,68015.0,68014.0,0.32005068]
[1722054052200,1.5855997,68015.0,68014.0,0.32005068]
[1722054053207,1.6086705,68015.0,68014.0,0.32005068]
[1722054054275,1.5855997,68015.0,68014.0,0.32005068]
[1722054054887,1.5211997,68015.0,68014.0,0.32005068]
[1722054056700,1.4711997,68015.0,68014.0,0.32005068]
[1722054056897,1.5211997,68015.0,68014.0,0.32005068]
[1722054058240,1.3674997,68015.0,68014.0,0.38475068]
[1722054058522,1.3444997,68015.0,68014.0,0.38475068]
[1722054059194,1.3444997,68015.0,68014.0,0.32005068]
[1722054059414,1.34450131,68015.0,68014.0,0.32005068]
[1722054060562,1.77535331,68015.0,68014.0,0.32005068]
[1722054060773,1.63330131,68015.0,68014.0,0.32005068]
[1722054061186,1.65637211,68015.0,68014.0,0.32005068]
[1722054061810,1.95042411,68015.0,68014.0,0.32005068]
[1722054062016,1.92735331,68015.0,68014.0,0.32005068]
[1722054065147,1.95042411,68015.0,68014.0,0.32005068]
[1722054066177,1.93514983,68015.0,68014.0,0.32005068]
[1722054066527,1.95042211,68015.0,68014.0,0.32005068]
[1722054066759,1.92735131,68015.0,68014.0,0.32005068]
[1722054069161,2.23910497,68015.0,68014.0,0.32005068]
[1722054069378,2.24826839,68015.0,68014.0,0.32005068]
[1722054070321,2.24826839,68015.0,68014.0,0.30805068]
[1722054070717,2.24826839,68015.0,68014.0,0.29405068]
[1722054070922,2.23910497,68015.0,68014.0,0.30105068]
[1722054071094,2.1865163,68015.0,68014.0,0.30105068]
[1722054071727,2.1865163,68015.0,68014.0,0.30705068]
[1722054072133,2.1865163,68015.0,68014.0,0.30105068]
[1722054072654,2.1865163,68015.0,68014.0,0.30705068]
[1722054073159,2.20958793,68015.0,68014.0,0.30705068]
[1722054074410,2.17735131,68015.0,68014.0,0.30705068]
[1722054074615,2.18651647,68015.0,68014.0,0.30705068]
[1722054077535,2.2095881,68015.0,68014.0,0.30705068]
[1722054077744,2.20042294,68015.0,68014.0,0.30705068]
[1722054077919,2.2095881,68015.0,68014.0,0.30705068]
[1722054078339,2.31034589,68015.0,68014.0,0.30705068]
[1722054078999,2.28983448,68015.0,68014.0,0.30705068]
[1722054081544,2.18907669,68015.0,68014.0,0.30705068]
[1722054082321,2.21214832,68015.0,68014.0,0.30705068]
[1722054082693,2.18907669,68015.0,68014.0,0.30705068]
[1722054083123,2.17991153,68015.0,68014.0,0.30705068]
[1722054083424,2.18907539,68015.0,68014.0,0.30705068]
[1722054084893,2.18907498,68015.0,68014.0,0.30705068]
[1722054085464,2.21214661,68015.0,68014.0,0.30705068]
[1722054087253,2.15184661,68015.0,68014.0,0.30705068]
[1722054088150,2.15184522,68015.0,68014.0,0.30705068]
[1722054091260,2.12877359,68015.0,68014.0,0.30705068]
[1722054091707,2.12877381,68015.0,68014.0,0.30705068]
[1722054095121,2.12877382,68015.0,68014.0,0.30705068]
[1722054095931,2.15184545,68015.0,68014.0,0.30705068]
[1722054096136,2.12877382,68015.0,68014.0,0.30705068]
[1722054098513,2.12877335,68015.0,68014.0,0.30705068]
[1722054098950,2.15184498,68015.0,68014.0,0.30705068]
[1722054100177,2.12877335,68015.0,68014.0,0.30705068]
[1722054105208,2.12877257,68015.0,68014.0,0.30705068]
[1722054107878,2.1518442,68015.0,68014.0,0.30705068]
[1722054108088,2.12877257,68015.0,68014.0,0.30705068]
[1722054108439,2.51625822,68015.0,68014.0,0.18942668]
[1722054108643,2.68195742,68015.0,68014.0,0.03479784]
[1722054108939,2.71903552,68015.0,68014.0,0.03479784]
[1722054109142,2.71903552,68015.0,68014.0,8.4e-07]
[1722054109143,3.01308752,68015.0,68014.0,8.4e-07]
[1722054109338,3.01308752,68015.0,68000.0,0.000924]
[1722054109339,1.56177703,68001.0,68000.0,0.000924]
[1722054109541,1.67854931,68001.0,68000.0,0.000924]
[1722054109744,1.67854931,68001.0,68000.0,0.295044]
[1722054110085,1.73749931,68001.0,68000.0,0.295044]
[1722054111388,1.73849931,68001.0,68000.0,0.313044]
[1722054111509,1.76157318,68001.0,68000.0,0.313044]
[1722054112535,1.73849931,68001.0,68000.0,0.313044]
[1722054116157,1.76157479,68001.0,68000.0,0.313044]
[1722054116380,1.73849931,68001.0,68000.0,0.313044]
[1722054117565,1.73849931,68001.0,68000.0,0.454944]
[1722054119188,1.76157454,68001.0,68000.0,0.454944]
[1722054120528,1.77028893,68001.0,68000.0,0.454944]
[1722054121969,1.47617593,68001.0,68000.0,0.454944]
[1722054124096,1.4531007,68001.0,68000.0,0.454944]
[1722054124511,1.0824877,68001.0,68000.0,0.454944]
[1722054127513,1.10556242,68001.0,68000.0,0.454944]
[1722054129566,1.0824877,68001.0,68000.0,0.454944]
[1722054134380,1.10556242,68001.0,68000.0,0.454944]
[1722054134593,1.0824877,68001.0,68000.0,0.454944]
[1722054136521,1.10556242,68001.0,68000.0,0.454944]
[1722054137800,1.0824877,68001.0,68000.0,0.454944]
[1722054142315,1.10556265,68001.0,68000.0,0.454944]
[1722054142519,1.0824877,68001.0,68000.0,0.454944]
[1722054145054,1.10556265,68001.0,68000.0,0.454944]
[1722054146185,1.0824877,68001.0,68000.0,0.454944]
[1722054149517,1.10556265,68001.0,68000.0,0.454944]
[1722054149715,1.0824877,68001.0,68000.0,0.454944]
[1722054152732,1.0662873,68001.0,68000.0,0.454944]
[1722054153098,1.10556268,68001.0,68000.0,0.454944]
[1722054153486,1.0824877,68001.0,68000.0,0.454944]
[1722054156631,1.10556268,68001.0,68000.0,0.454944]
[1722054157845,1.0824877,68001.0,68000.0,0.454944]
[1722054162590,1.10556272,68001.0,68000.0,0.454944]
[1722054162791,1.0824877,68001.0,68000.0,0.454944]
[1722054165578,1.10556275,68001.0,68000.0,0.454944]
[1722054165980,1.0824877,68001.0,68000.0,0.454944]
[1722054169185,1.10556275,68001.0,68000.0,0.454944]
[1722054177072,1.0824877,68001.0,68000.0,0.454944]
[1722054177869,0.69771031,68001.0,68000.0,0.454944]
[1722054178106,0.40359731,68001.0,68000.0,0.454944]
[1722054178738,0.69771031,68001.0,68000.0,0.454944]
[1722054179100,0.69671031,68001.0,68000.0,0.446944]
[1722054179303,0.69671031,68001.0,68000.0,0.460944]
[1722054179887,0.69671031,68001.0,68000.0,0.450944]
[1722054180300,0.69671031,68001.0,68000.0,0.464944]
[1722054180502,0.71978485,68001.0,68000.0,0.464944]
[1722054182552,0.69671031,68001.0,68000.0,0.464944]
[1722054183829,0.40259731,68001.0,68000.0,0.464944]
[1722054185956,0.42567162,68001.0,68000.0,0.464944]
[1722054186128,0.40259731,68001.0,68000.0,0.464944]
[1722054189537,0.27861554,68001.0,68000.0,0.464944]
[1722054189752,0.27861554,68001.0,68000.0,1.02832927]
[1722054190451,0.27661554,68001.0,68000.0,1.02832927]
[1722054191583,0.26134326,68001.0,68000.0,1.02832927]
[1722054192248,0.26134326,68001.0,68000.0,1.02831746]
[1722054192481,0.26134326,68001.0,68000.0,0.58714246]
[1722054192684,0.26134326,68001.0,68000.0,0.73420046]
[1722054195624,0.26134326,68001.0,68000.0,0.73420057]
[1722054196669,0.26134326,68001.0,68000.0,1.02831757]
[1722054196843,0.26134326,68001.0,68000.0,0.73420057]
[1722054197258,0.24026903,68001.0,68000.0,0.73420057]
[1722054198014,0.23826903,68001.0,68000.0,1.02831757]
[1722054198903,0.23826903,68001.0,68000.0,0.906119]
[1722054199233,0.23826903,68001.0,68000.0,1.02831893]
[1722054200316,0.26134239,68001.0,68000.0,1.02831893]
[1722054202314,0.26134239,68001.0,68000.0,0.906119]
[1722054202510,0.26134239,68001.0,68000.0,1.02831893]
[1722054205647,0.23826903,68001.0,68000.0,1.02831893]
[1722054209101,0.26134253,68001.0,68000.0,1.02831893]
[1722054209313,0.23826903,68001.0,68000.0,1.02831891]
[1722054211093,0.23826903,68001.0,68000.0,1.32243591]
[1722054212577,0.26134236,68001.0,68000.0,1.200236]
[1722054212808,0.03927373,68001.0,68000.0,1.32243572]
[1722054213036,0.0162004,68001.0,68000.0,1.200236]
[1722054213239,0.0162004,68001.0,68000.0,1.32243398]
[1722054214080,0.0162004,68001.0,68000.0,1.200236]
[1722054214293,0.0162004,68001.0,68000.0,1.32243322]
[1722054214508,0.18826903,68001.0,68000.0,1.32243322]
[1722054214746,0.0162004,68001.0,68000.0,1.32243322]
[1722054215146,0.23826903,68001.0,68000.0,1.32243322]
[1722054216165,0.26134219,68001.0,68000.0,1.32243322]
[1722054216358,0.26134219,68001.0,68000.0,1.32243292]
[1722054218370,0.26134219,68001.0,68000.0,1.02831592]
[1722054218568,0.26334219,68001.0,68000.0,0.58714092]
[1722054219016,0.26334219,68001.0,68000.0,0.50994092]
[1722054219225,1.01387146,68001.0,68000.0,0.44524092]
[1722054219425,1.0678983,68001.0,68000.0,0.44524092]
[1722054219575,1.0678983,68001.0,68000.0,0.323044]
[1722054219779,1.0678983,68001.0,68000.0,0.44525101]
[1722054221037,1.0678983,68001.0,68000.0,0.323044]
[1722054222376,1.09097155,68001.0,68000.0,0.323044]
[1722054222800,1.0678983,68001.0,68000.0,0.323044]
[1722054224248,1.3620113,68001.0,68000.0,0.323044]
[1722054226229,1.38508459,68001.0,68000.0,0.323044]
[1722054226438,1.3620113,68001.0,68000.0,0.323044]
[1722054228215,1.2849113,68001.0,68000.0,0.323044]
[1722054229626,1.30798468,68001.0,68000.0,0.323044]
[1722054230332,1.01387168,68001.0,68000.0,0.323044]
[1722054230537,1.01387168,68001.0,68000.0,0.467844]
[1722054234640,0.9907983,68001.0,68000.0,0.467844]
[1722054236456,0.6966853,68001.0,68000.0,0.467844]
[1722054237743,0.71975872,68001.0,68000.0,0.467844]
[1722054238090,0.27658972,68001.0,68000.0,0.467844]
[1722054238289,0.27659173,68001.0,68000.0,0.59004877]
[1722054238496,0.25351831,68001.0,68000.0,0.59004877]
[1722054238704,0.23826903,68001.0,68000.0,0.59004877]
[1722054239994,0.23826903,68001.0,68000.0,0.5900442]
[1722054241703,0.26134245,68001.0,68000.0,0.5900442]
[1722054242559,0.26134245,68001.0,68000.0,0.59004472]
[1722054243536,0.26334245,68001.0,68000.0,0.59004472]
[1722054243695,0.26134245,68001.0,68000.0,0.59004472]
[1722054245945,0.23826903,68001.0,68000.0,0.59004466]
[1722054246132,0.23826903,68001.0,68000.0,0.59004467]
[1722054246536,0.25351938,68001.0,68000.0,0.59004467]
[1722054247390,0.25351938,68001.0,68000.0,0.59000451]
[1722054247586,0.25351941,68001.0,68000.0,0.59000451]
[1722054250573,0.27659273,68001.0,68000.0,0.59000451]
[1722054250778,0.25351941,68001.0,68000.0,0.59000451]
[1722054251959,0.23826903,68001.0,68000.0,0.73706251]
[1722054252280,0.23826903,68001.0,68000.0,0.59000451]
[1722054252730,0.23826903,68001.0,68000.0,0.59000174]
[1722054252977,0.23793534,68001.0,68000.0,0.59000174]
[1722054254125,0.26100866,68001.0,68000.0,0.59000174]
[1722054254779,0.23793534,68001.0,68000.0,0.59000174]
[1722054255039,0.23793534,68001.0,68000.0,0.73705974]
[1722054256157,0.23793534,68001.0,68000.0,0.61486184]
[1722054256374,0.23793534,68001.0,68000.0,0.73705973]
[1722054257482,0.23793534,68001.0,68000.0,0.59000173]
[1722054258524,0.23793534,68001.0,68000.0,0.73705973]
[1722054259340,0.23793534,68001.0,68000.0,0.59000173]
[1722054259701,0.23993534,68001.0,68000.0,0.59000173]
[1722054262400,0.26300866,68001.0,68000.0,0.59000173]
[1722054262954,0.26300866,68001.0,68000.0,0.59000152]
[1722054263811,0.26300866,68001.0,68000.0,0.46780384]
[1722054264025,0.26300866,68001.0,68000.0,0.59000152]
[1722054266409,0.27825783,68001.0,68000.0,0.59000152]
[1722054267098,0.03832249,68001.0,68000.0,0.59000152]
[1722054267304,0.03832249,68001.0,68000.0,1.76967009]
[1722054267305,0.02307332,68001.0,68000.0,1.76967009]
[1722054268207,0.01586671,68005.0,68004.0,0.73525]
[1722054268423,0.01586671,68005.0,68004.0,1.36934768]
[1722054269540,0.01586671,68005.0,68004.0,1.37934768]
[1722054269962,0.23793534,68005.0,68004.0,1.37933289]
[1722054270236,0.23793534,68005.0,68004.0,1.36933289]
[1722054270408,0.23793534,68005.0,68004.0,1.39533289]
[1722054270615,0.23793534,68005.0,68004.0,1.38333289]
[1722054271059,0.23793534,68005.0,68004.0,1.39733289]
[1722054273357,0.23793534,68005.0,68004.0,1.27515]
[1722054273545,0.23793534,68005.0,68004.0,1.39733206]
[1722054273754,0.01586671,68005.0,68004.0,1.39733206]
[1722054275625,0.0389382,68005.0,68004.0,1.39733206]
[1722054276054,0.01586671,68005.0,68004.0,1.39733206]
[1722054276975,0.23793534,68005.0,68004.0,1.39733206]
[1722054277831,0.01586671,68005.0,68004.0,1.39733206]
[1722054279301,0.0389382,68005.0,68004.0,1.39733206]
[1722054279837,0.02307149,68005.0,68004.0,1.85045515]
[1722054280340,0.02307149,68005.0,68004.0,1.8504549]
[1722054280471,0.05,68008.0,68007.0,0.147043]
[1722054280696,0.05,68008.0,68007.0,1.22526138]
[1722054280900,0.05,68008.0,68007.0,1.51934838]
[1722054281325,0.23993534,68008.0,68007.0,0.48187181]
[1722054281525,0.23993534,68008.0,68007.0,0.41627181]
[1722054281739,0.23993534,68008.0,68007.0,0.42927181]
[1722054281962,0.23993534,68008.0,68007.0,0.30709]
[1722054282796,0.23993534,68008.0,68007.0,0.29409]
[1722054283120,0.23993534,68008.0,68007.0,0.32209]
[1722054283526,0.23993534,68008.0,68007.0,0.30809]
[1722054283733,0.26300661,68008.0,68007.0,0.32209]
[1722054283932,0.23993534,68008.0,68007.0,0.32209]
[1722054284387,0.38697634,68008.0,68007.0,0.44427757]
[1722054284587,0.23993534,68008.0,68007.0,0.44427757]
[1722054286955,0.26300664,68008.0,68007.0,0.44427757]
[1722054287363,0.23993534,68008.0,68007.0,0.44427757]
[1722054288150,0.38697634,68008.0,68007.0,0.44427757]
[1722054290823,0.41004781,68008.0,68007.0,0.44427768]
[1722054290954,0.41088781,68008.0,68007.0,0.44427768]
[1722054291784,0.38781634,68008.0,68007.0,0.44427768]
[1722054293867,0.68189934,68008.0,68007.0,0.44427768]
[1722054294070,0.68189934,68008.0,68007.0,0.32209]
[1722054294071,0.67822895,68008.0,68007.0,0.32209]
[1722054294311,0.69349348,68008.0,68007.0,0.44427779]
[1722054295077,0.71656498,68008.0,68007.0,0.44427779]
[1722054296824,0.69349348,68008.0,68007.0,0.44427779]
[1722054297480,0.69349348,68008.0,68007.0,0.44427777]